Cogmind - Beta 14 @@@ ROGUE MODE // 2024.09.07 @ 01:44:42 Player: Johiah Result: Destroyed by X-57 Shotgunner with Shotgun Performance ------------- Evolutions (2) 1000 Regions Visited (5) 1000 Robots Destroyed (17) 85 Value Destroyed (483) 483 Prototype IDs (1) 20 Alien Tech Used (0) 0 Bonus (37) 37 TOTAL SCORE: 2625 Bonus ------- Follower Combat Kills 37 Cogmind --------- Core Integrity 0/550 Matter 300/300 Energy 100/100 System Corruption 4% Temperature Cool (0) Movement Core (50) Location -8/Materials Parts ------- > --- POWER (2) -------- (None) > --- PROPULSION (2) --- (None) > --- UTILITY (3) ------ (None) > --- WEAPON (4) ------- (None) > --- INVENTORY (5) ---- Light Ion Engine Peak State ------------ > --- POWER ------------ Light Ion Engine Light Ion Engine > --- PROPULSION ------- Improved Treads Improved Treads > --- UTILITY ---------- Experimental Sensor Array Improved Targeting Computer Shield Generator > --- WEAPON ----------- Particle Gun Light Assault Rifle Autogun Grenade Launcher > --- INVENTORY -------- Light Ion Engine [Rating: 25] Favorites ----------- Power Light Ion Engine Engine Light Ion Engine Power Core Nuclear Core Propulsion Flight Unit Treads Improved Treads Leg Aluminum Leg Flight Unit Flight Unit Utility Experimental Sensor Array Device Experimental Sensor Array Storage Small Matter Pod Processor Improved Targeting Computer Protection Hardened Medium Armor Plating Weapon Light Assault Rifle Energy Gun Particle Gun Ballistic Gun Light Assault Rifle Launcher Grenade Launcher Build | -11 -10 -10 -10 -9 -8 ------- Run | Yrd Mat Min Exi Min Mat Slots Evolved 4 | . . . . . 4 Power 1 | . . . . . 1 Propulsion . | . . . . . . Utility 1 | . . . . . 1 Weapon 2 | . . . . . 2 Parts Attached 38 | 7 1 7 . 16 7 Power 6 | 1 . 1 . 2 2 Engine 5 | 1 . 1 . 2 1 Core 1 | . . . . . 1 Reactor . | . . . . . . Propulsion 11 | 2 1 2 . 5 1 Treads 2 | . . . . 2 . Leg 4 | 2 1 . . . 1 Wheel . | . . . . . . Hover . | . . . . . . Flight 5 | . . 2 . 3 . Utility 8 | 2 . 1 . 3 2 Device 4 | 1 . 1 . 2 . Storage 2 | 1 . . . 1 . Processor 1 | . . . . . 1 Hackware . | . . . . . . Protection 1 | . . . . . 1 Artifact . | . . . . . . Weapon 13 | 2 . 3 . 6 2 Energy Gun 3 | 1 . . . 2 . Energy Cannon . | . . . . . . Ballistic Gun 7 | 1 . 2 . 3 1 Ballistic Cannon . | . . . . . . Launcher 3 | . . 1 . 1 1 Special Weapon . | . . . . . . Impact Weapon . | . . . . . . Slashing Weapon . | . . . . . . Piercing Weapon . | . . . . . . Special Melee Weapon . | . . . . . . Unidentified Prototypes 1 | . . 1 . . . Parts Lost 20 | . 1 1 . 4 14 Power 5 | . . 1 . 1 3 Propulsion 5 | . . . . 2 3 Utility 6 | . 1 . . 1 4 Weapon 4 | . . . . . 4 Highest Loss Streak 11 | . 1 2 . 3 11 To Critical Strikes . | . . . . . . Average Slot Usage (%) 83 | . 97 87 100 82 66 Engine 12 | . 14 11 14 13 11 Treads 8 | . . . . 11 11 Leg 4 | . 28 6 . . 1 Flight 10 | . . 21 28 11 . Device 18 | . 14 18 28 21 11 Storage 1 | . 11 . . . . Energy Gun 7 | . 14 7 . 6 6 Ballistic Gun 16 | . 14 18 28 16 12 Launcher 1 | . . 1 . . 5 Peak Build Rating 25 | 7 7 15 15 20 25 Average Rating 12 | 4 6 9 15 14 17 On Entrance 10 | . 7 6 15 15 20 Naked Turns 19 | . . . . . 19 Heaviest Build 19 | 8 8 9 7 12 19 Greatest Support 46 | 20 20 20 8 46 46 Greatest Overweight (x) 4 | . . 1 . 1 4 Average Overweight (x) . | . . . . . . Largest Inventory Capacity 5 | 5 5 5 5 5 5 Average Capacity 5 | 5 5 5 5 5 5 Most Carried 5 | 3 5 5 4 5 3 Average Carried 3 | . 4 4 4 4 1 Final Capacity 5 | 5 5 5 5 5 5 Final Carried 5 | 3 5 4 4 4 1 Class Distribution -------------------- 42% | Mutant 28% | Scavenger-Mutant 19% | Derelict-Mutant 7% | Derelict-Gunner Dominant Class ---------------- Mutant | -10/Materials Scavenger-Mutant | -10/Mines Scavenger-Mutant | -10/Exiles Derelict-Mutant | -9/Mines Derelict-Gunner | -8/Materials Resources | -11 -10 -10 -10 -9 -8 ----------- Run | Yrd Mat Min Exi Min Mat Matter Collected 696 | 300 . 31 . 297 68 Remotely . | . . . . . . Salvage Created 526 | 66 108 51 . 60 241 Parts 39 | 6 7 7 . 8 11 Haulers Intercepted . | . . . . . . Recyclers Shooed 1 | . 1 . . . . Parts Field Recycled . | . . . . . . Retrieved Matter . | . . . . . . Parts Self-Destructed . | . . . . . . Prevented . | . . . . . . Kills | -11 -10 -10 -10 -9 -8 ------- Run | Yrd Mat Min Exi Min Mat Combat Hostiles Destroyed 16 | 1 2 3 . 5 5 Melee 1 | . . . . . 1 Guns 14 | 1 2 3 . 4 4 AOE 1 | . . . . 1 . Classes Destroyed 6 | 2 . 1 . 1 2 Worker 1 | 1 . . . . . Swarmer 7 | . . 3 . 4 . Grunt 6 | 1 2 . . . 3 Brawler 1 | . . . . . 1 Demolisher 1 | . . . . 1 . Specialist 1 | . . . . . 1 Best Kill Streak 4 | 2 2 3 . 4 3 Combat Bots Only 4 | 1 2 3 . 4 3 Max Kills in Single Turn 2 | 1 2 2 . 1 2 Gunslinging 1 | . 1 1 . . 1 Exploded 1 | . . . . 1 . Melee 1 | . . . . . 1 Uniques/NPCs Destroyed . | . . . . . . Combat | -11 -10 -10 -10 -9 -8 -------- Run | Yrd Mat Min Exi Min Mat Hostile Shots Fired 214 | 2 16 31 . 43 122 Missed 55 | . 5 8 . 19 23 Damage Taken 2210 | 21 153 170 . 338 1528 Core 721 | 11 18 29 . 104 559 Absorbed by Shields 55 | . . . . . 55 Core Remaining (%) 65 | 95 . . . 35 . Volleys Fired 57 | 3 9 7 . 25 13 Largest 4 | 2 2 2 . 2 4 Hottest 138 | 60 60 60 . 60 138 Shots Fired 114 | 6 18 14 . 42 34 Gun 104 | 6 18 14 . 35 31 Cannon . | . . . . . . Launcher 10 | . . . . 7 3 Special . | . . . . . . Kinetic 75 | 3 9 7 . 34 22 Thermal 9 | . . . . . 9 Explosive 10 | . . . . 7 3 Electromagnetic 20 | 3 9 7 . 1 . Robot Hit Streak 7 | 4 5 2 . 4 7 Robot Miss Streak 8 | . 3 8 . 4 4 Penetration Max . | . . . . . . Secondary Targets 7 | . 1 2 . 2 2 Max Gunslinging Chain 1 | . 1 1 . 1 1 Shots Hit Robots 54 | 4 8 5 . 17 20 Core Hits 58 | 3 6 3 . 16 30 Critical Kills 1 | . . . . . 1 Critical Parts Destroyed . | . . . . . . Critical Strikes 3 | . 1 . . . 2 Burn 1 | . . . . . 1 Destroy 1 | . . . . . 1 Corrupt 1 | . 1 . . . . Melee Attacks . | . . . . . . Impact . | . . . . . . Slashing . | . . . . . . Piercing . | . . . . . . Sneak Attacks . | . . . . . . Combat Hostiles . | . . . . . . Follow-up Attacks . | . . . . . . Damage Inflicted 968 | 49 106 46 . 220 547 Guns 549 | 49 105 46 . 111 238 Cannons . | . . . . . . Explosions 311 | . . . . 103 208 Melee . | . . . . . . Ramming 108 | . 1 . . 6 101 Kinetic 356 | 9 50 26 . 111 160 Thermal 78 | . . . . . 78 Explosive 311 | . . . . 103 208 Electromagnetic 115 | 40 55 20 . . . Impact . | . . . . . . Slashing . | . . . . . . Piercing . | . . . . . . Highest Corruption 4 | . . . . . 4 Average Corruption 4 | . . . . . 4 Corruption Purged . | . . . . . . Corruption Blocked . | . . . . . . Effects 1 | . . . . . 1 Data Loss (minor) 1 | . . . . . 1 Overload Shots . | . . . . . . Overflow Damage . | . . . . . . Projectiles . | . . . . . . Explosions . | . . . . . . Melee . | . . . . . . Knockbacks 2 | . . . . 1 1 Impact 2 | . . . . 1 1 Kinetic . | . . . . . . Secondary . | . . . . . . Self-Inflicted Damage 39 | . . . . . 39 Shots . | . . . . . . Rammed 23 | . . . . 1 22 Targets Rammed 35 | . 1 . . 1 33 Kicked 12 | . 1 . . . 11 Crushed . | . . . . . . Highest Temperature 573 | 32 21 . . 24 573 Average Temperature 220 | 18 12 . . 11 291 Received Heat Transfer 805 | 12 87 . . 6 700 Effects 10 | . . . . . 10 Shutdowns 3 | . . . . . 3 Energy Bleed 2 | . . . . . 2 Interference 1 | . . . . . 1 Matter Decay 2 | . . . . . 2 Short Circuit 1 | . . . . . 1 Damage (major) 1 | . . . . . 1 Siege Activations . | . . . . . . Robots Corrupted . | . . . . . . Combat Hostiles . | . . . . . . Parts Fried . | . . . . . . Impact Corruptions . | . . . . . . Robots Melted . | . . . . . . Combat Hostiles . | . . . . . . Parts Melted . | . . . . . . Heat Transferred 259 | . . . . . 259 Parts Sabotaged . | . . . . . . Parts Stolen . | . . . . . . Parts Stripped . | . . . . . . Power Chain Reactions . | . . . . . . Alert | -11 -10 -10 -10 -9 -8 ------- Run | Yrd Mat Min Exi Min Mat Peak Influence 221 | 25 60 98 . 182 221 Initial 23 | . 16 23 . . . Average 74 | 5 22 90 . 93 75 Maximum Alert Level 1 | . . . . . 1 Low Security (%) 99 | 100 100 100 . 100 96 Level 1 . | . . . . . 3 Level 2 . | . . . . . . Level 3 . | . . . . . . Level 4 . | . . . . . . Level 5 . | . . . . . . High Security . | . . . . . . Max Security . | . . . . . . Squads Dispatched 3 | . 1 . . 1 1 Investigation 1 | . . . . 1 . Extermination . | . . . . . . Reinforcement 2 | . 1 . . . 1 Assault . | . . . . . . Garrison . | . . . . . . Intercept . | . . . . . . Searches Triggered . | . . . . . . Construction Impeded . | . . . . . . Haulers Reinforced . | . . . . . . Active Scanning Responses . | . . . . . . Cargo Convoy Interrupts . | . . . . . . Stealth | -11 -10 -10 -10 -9 -8 --------- Run | Yrd Mat Min Exi Min Mat Distress Signals 4 | . 3 . . . 1 Communications Jammed . | . . . . . . Distress Signals . | . . . . . . Times Spotted 43 | 1 9 5 . 13 15 Peak Tracking Total 10 | 1 6 3 . 6 10 Tactical Retreats 2 | . . . . 1 1 Traps | -11 -10 -10 -10 -9 -8 ------- Run | Yrd Mat Min Exi Min Mat Traps Triggered . | . . . . . . Indirectly . | . . . . . . Trap Hack Attempts . | . . . . . . Triggered . | . . . . . . Disarmed . | . . . . . . Reprogrammed . | . . . . . . Reused . | . . . . . . Traps Extracted . | . . . . . . Installed . | . . . . . . Triggered . | . . . . . . Machines | -11 -10 -10 -10 -9 -8 ---------- Run | Yrd Mat Min Exi Min Mat Machines Disabled 2 | . 1 . . . 1 Max in Single Turn 1 | . 1 . . . 1 Machines Repaired . | . . . . . . Machines Dismantled . | . . . . . . Machines Sabotaged . | . . . . . . Overloaded Fab Kills . | . . . . . . Hacking | -11 -10 -10 -10 -9 -8 --------- Run | Yrd Mat Min Exi Min Mat Machines Accessed 3 | . 1 . . 2 . Terminals 3 | . 1 . . 2 . Fabricators . | . . . . . . Repair Stations . | . . . . . . Recycling Units . | . . . . . . Scanalyzers . | . . . . . . Garrison Access . | . . . . . . Total Hacks 9 | . 3 . . 6 . Successful 6 | . 2 . . 4 . Failed 3 | . 1 . . 2 . Catastrophic 2 | . . . . 2 . Database Lockouts . | . . . . . . Manual . | . . . . . . Terminals 9 | . 3 . . 6 . Fabricators . | . . . . . . Repair Stations . | . . . . . . Recycling Units . | . . . . . . Scanalyzers . | . . . . . . Garrison Access . | . . . . . . Terminal Hacks 6 | . 2 . . 4 . Record 6 | . 2 . . 4 . Fabricator Hacks . | . . . . . . Repair Station Hacks . | . . . . . . Recycling Unit Hacks . | . . . . . . Scanalyzer . | . . . . . . Garrison Access Hacks . | . . . . . . Unauthorized Hacks . | . . . . . . Terminals . | . . . . . . Fabricators . | . . . . . . Repair Stations . | . . . . . . Recycling Units . | . . . . . . Scanalyzers . | . . . . . . Garrison Access . | . . . . . . Data Cores Recovered . | . . . . . . Used . | . . . . . . Hacking Detections 3 | . 1 . . 2 . Full Trace Events 2 | . 1 . . 1 . Feedback Events . | . . . . . . Feedback Blocked . | . . . . . . Robot Schematics Acquired . | . . . . . . Robots Built . | . . . . . . Authchips . | . . . . . . Time . | . . . . . . Total Robot Build Rating . | . . . . . . Part Schematics Acquired . | . . . . . . Parts Built . | . . . . . . Authchips . | . . . . . . Time . | . . . . . . Total Part Build Rating . | . . . . . . Parts Repaired . | . . . . . . Time . | . . . . . . Parts Recycled . | . . . . . . Recycled Matter . | . . . . . . Retrieved Matter . | . . . . . . Retrieved Components . | . . . . . . Parts Scanalyzed . | . . . . . . Part Schematics Acquired . | . . . . . . Parts Damaged . | . . . . . . Bothacking | -11 -10 -10 -10 -9 -8 ------------ Run | Yrd Mat Min Exi Min Mat Used RIF Installer . | . . . . . . Robots Hacked . | . . . . . . Non-combat . | . . . . . . Combat . | . . . . . . Robot Hacks Applied . | . . . . . . Relay Couplers Released . | . . . . . . Fabnet Peak Effective % . | . . . . . . Robots Rewired . | . . . . . . Allies Hacked . | . . . . . . Hacks Repelled . | . . . . . . Allies | -11 -10 -10 -10 -9 -8 -------- Run | Yrd Mat Min Exi Min Mat Total Allies 5 | . . 3 . 2 . Largest Group 5 | . . 3 3 5 4 Highest-Rated Group 85 | . . 40 40 85 69 Highest-Rated Ally 31 | . . 16 16 31 31 Total Orders . | . . . . . . Ally Attacks 35 | . . . . 27 8 Total Damage 441 | . . . . 306 135 Kills 8 | . . . . 7 1 Allies Corrupted . | . . . . . . Allies Melted . | . . . . . . Intel | -11 -10 -10 -10 -9 -8 ------- Run | Yrd Mat Min Exi Min Mat Robot Analysis Total . | . . . . . . Derelict Logs Recovered 2 | . . 1 . 1 . Drone Launches . | . . . . . . Drone Recoveries . | . . . . . . Exploration | -11 -10 -10 -10 -9 -8 ------------- Run | Yrd Mat Min Exi Min Mat Turns Passed 1149 | 108 108 181 32 541 179 Spaces Moved 1236 | 82 66 365 87 576 60 Core 28 | 22 . . . . 6 Treads 192 | . . . . 138 54 Legs 135 | 60 66 9 . . . Wheels . | . . . . . . Hover . | . . . . . . Flight 881 | . . 356 87 438 . Fastest Speed 37 | 50 120 37 37 37 50 Average Speed 71 | 101 120 39 37 77 159 Slowest Speed 250 | 120 120 120 37 160 250 Overloaded Moves . | . . . . . . Propulsion Burnouts . | . . . . . . Robots Hopped 4 | . . . . 4 . Cave-ins Triggered . | . . . . . . Exploration Rate (%) 30 | 5 15 61 8 86 5 Regions Visited 5 Branch Regions 3 Pre-discovered Areas 1 | . . 1 . . . Known Exits Taken . | . . . . . . Unknown Exits Taken 5 | 1 1 1 1 1 . Scrap Searched 2 | . . . . 2 . Spaces Dug . | . . . . . . Terrain Destroyed 34 | . . . . 9 25 Melee . | . . . . . . Projectile . | . . . . . . AOE 34 | . . . . 9 25 Terrain Rammed . | . . . . . . Walls Destroyed . | . . . . . . Machines Disabled . | . . . . . . Actions | -11 -10 -10 -10 -9 -8 --------- Run | Yrd Mat Min Exi Min Mat Total 1407 | 101 79 391 86 633 117 Wait . | . . . . . . Move 1223 | 81 65 364 86 567 60 Hop 4 | . . . . 4 . Pick Up 30 | 10 2 5 . 9 4 Fast Attach 6 | . . 2 . 4 . Attach 21 | 7 . 2 . 5 7 Detach 3 | . . 1 . 2 . Swap 11 | . 1 3 . 7 . Drop 17 | . 1 7 . 9 . Fire 57 | 3 9 7 . 25 13 Melee . | . . . . . . Ram 22 | . . . . . 22 Kick 12 | . 1 . . . 11 Crush 1 | . . . . 1 . Escape Stasis . | . . . . . . Rewire . | . . . . . . Trap . | . . . . . . Miscellaneous . | . . . . . . Route ------- -11/Scrapyard -10/Materials -10/Mines -10/Exiles -9/Mines -8/Materials (discovered 3 exits: Fac x3) History --------- Turn | Location | Event 2 | -11/Scrapyard | Met Revision 17 82 | -11/Scrapyard | Discovered new exit (range 8) 109 | -11/Scrapyard | Entered Materials 171 | -10/Materials | Discovered new exit (range 15) 217 | -10/Materials | Entered Mines 295 | -10/Mines | YI-UF0 nonchalantly dropped a Grenade Launcher on the ground 331 | -10/Mines | Found a damaged Exp. Sensor Array with a note attached 333 | -10/Mines | Found Prototype Device 334 | -10/Mines | Identified Exp. Sensor Array 366 | -10/Mines | Learned location of Zion (-7) 371 | -10/Mines | Assisted by bots powering up and referring to "LRC-V3" 378 | -10/Mines | Deemed a non-threat by the Exiles lab entrance 378 | -10/Mines | Discovered new exit (range 5) 398 | -10/Mines | Entered Exiles 398 | -10/Exiles | Accompanied by 3 allies 404 | -10/Exiles | Discovered new exit (range 15) 430 | -10/Exiles | Entered Mines 430 | -9/Mines | Accompanied by 3 allies 433 | -9/Mines | A weapon hastily lodged in a ceiling crevice suddenly fell to the ground 508 | -9/Mines | Assembled infested the area 553 | -9/Mines | Core integrity fell below 50% 596 | -9/Mines | Lost 3 parts (2n1u) 598 | -9/Mines | Learned 8 Materials zone layouts 671 | -9/Mines | Discovered new exit (range 5) 971 | -9/Mines | Entered Materials 971 | -8/Materials | Accompanied by 4 allies 971 | -8/Materials | Evolved 4 slots: Power x1, Utility x1, Weapon x2 972 | -8/Materials | Identified exit to Factory 976 | -8/Materials | Led the pair of lost Derelicts to an unsafe place 1079 | -8/Materials | Lost 4 allies 1110 | -8/Materials | Core integrity fell below 50% 1135 | -8/Materials | Lost 11 parts (2p2n3u4w) 1144 | -8/Materials | Core integrity fell below 20% 1150 | -8/Materials | Destroyed by X-57 Shotgunner with Shotgun Last Messages --------------- Kicked G-50 Soldier. Critical hit (Burn: +37). Kicked G-50 Soldier out of the way. Kicked G-47 Trooper. K-01 Serf collects debris. Kicked G-47 Trooper out of the way. Hrd. Medium Armor Plating destroyed. Kicked G-47 Trooper. K-01 Serf collects debris. Kicked G-47 Trooper. M-13 Machinist repairs G-47 Trooper. Kicked G-47 Trooper. VSS Leg destroyed. Slammed into G-47 Trooper. Nuclear Core destroyed. M-13 Machinist repairs G-50 Soldier. Slammed into G-47 Trooper. Critical hit (Burn: +37). M-13 Machinist repairs U-05 Engineer. Slammed into G-47 Trooper. Map ----- +----------------------------------------------------+ | ?????????????????????????????????????????????????? | | ?????????????????????????????????????????????????? | | ?????????????????????????????????????????????????? | | ?????????????????????????????????????????????????? | | ?????????????????????????????????????????????????? | | ?????????????????????????????????????????????????? | | ?????????????????????????????????????????????????? | | ?????????????????????????????????????????????????? | | ?????????????????????????????????????????????????? | | ?????????????????????????????????????????????????? | | ?????????????????????????????????????????????????? | | ?????????????????????????????????????????????????? | | ?????????????????????????????????????????????????? | | ?????????????????????????????????????????????????? | | ?????????????????????????????????????????????????? | | ?????????????????????????????????????????????????? | | ?????????????????????????????????????????????????? | | ?????????????????????????????????????????????????? | | ??????????????????????????##?????????????????????? | | ???????????????????????? # #?????????????????????? | | ?????????????????########### #???????????????????? | | ?????????????????# * # #???????????????????? | | ?????????????????# u %!%= # #??????????????????? | | ?????????????????# """"% ## #??????????????????? | | ?????????????????# """""x =# #??????????????????? | | ?????????????????# """""%@g## #??????????????????? | | ?????????????????# """""%%g# #??????????????????? | | ?????????????????# """%"""m# ##??????????????????? | | ??????[ ????????# ugg[###???????????????????? | | ?????? ############/##################??????? | | ?????[ =%* == #??????? | | ????? !%* #??????? | | ????? [ #??????? | | #######+##### ##############+###########??????? | | #??# # #??????????# #?????????????? | | #??# """ # #??????????# #?????????????? | | ##### """ # #??????????# #?????????????? | | # """ # #??????????# = #?????????????? | | # + #??????????# !! #?????????????? | | """ # """ # #??????????# ! #?????????????? | | """ # """ ### #??????????########?????????????? | | """ # """ #?# #?######????????????????????????? | | ##### ### ### ????????????????????????? | | ????########## # ????????????????????????? | | ?############# # """????????????????????????? | | ?# + + """????????????????????????? | | ?#""""" #### # """????????????????????????? | | ?#""""" #??# # ????????????????????????? | | ?#""""" #??## #########????????????????????????? | | ?#""""" #???# #????????????????????????????????? | +----------------------------------------------------+ Best States ------------- Heat Dissipation 35 Energy Generation 15 Energy Capacity 240 Matter Stores 350 Matter Capacity 400 Sight Range 16 Robot Scan Range 20 Terrain Scan Density 10 Armor Coverage 225 Evasion (%) 62 Targeting Accuracy 6 Recoil Reduction 2 Item Schematics ----------------- None Robot Schematics ------------------ None Fabricated ------------ Nothing Alien Tech Used ----------------- None Achievements -------------- Fist Fight I Survived The Infestation Risk Taker Challenges ------------ None Game ------ Seed VortexArcTendrils Manual? 0 Play Time 00:23:34 Cumulative 2.9 hours Start 2024.09.07 @ 01:23:00 End 2024.09.07 @ 01:44:42 Sessions 1 Manual Loads 0 Difficulty Rogue Special Mode None Game No. 3 Rogue 3 Adventurer 0 Explorer 0 Win Type - Total 0 Types 0/0/0/0/0/0/0/0/0 Lore% 1 Gallery% 7 Achievement% 8 Wizard Run 0 Options --------- Layout 1 ASCII 0 Keyboard 0 Movement Mouse Keybinds 0 Fullscreen 2 Font 24/Smallcaps Map View 50x35 Zoom Use 0% Tactical HUD 0 Map Filters NONE Filters NONE Steam 1 RUN: 2edc31cb-b7c7-4635-a44b-d4d7f3389810